Cogmind - Beta 16 @@@ ROGUE MODE // 2026.01.02 @ 23:10:03 Player: GermanMO Result: Destroyed by Y-45 Defender with Beam Rifle Performance ------------- Evolutions (0) 0 Regions Visited (3) 600 Robots Destroyed (16) 80 Value Destroyed (184) 184 Prototype IDs (0) 0 Alien Tech Used (0) 0 Bonus (0) 0 TOTAL SCORE: 864 Bonus ------- None Cogmind --------- Core Integrity 0/250 Matter 285/300 Energy 119/125 System Corruption 0% Temperature Cool (9) Movement Core (100) Ox1 Location -10/Subcaves Parts ------- > --- POWER (1) -------- Light Ion Engine > --- PROPULSION (2) --- (None) > --- UTILITY (2) ------ Signal Interpreter Seismic Detector > --- WEAPON (2) ------- Medium Laser > --- INVENTORY (5) ---- Experimental Sensor Array Improved Terrain Scanner Peak State ------------ > --- POWER ------------ Light Ion Engine > --- PROPULSION ------- Wheel Wheel > --- UTILITY ---------- Improved Terrain Scanner Seismic Detector > --- WEAPON ----------- Medium Laser Assault Rifle > --- INVENTORY -------- Improved Terrain Scanner Mining Laser [Rating: 9] Favorites ----------- Power Light Ion Engine Engine Light Ion Engine Propulsion Wheel Wheel Wheel Utility Seismic Detector Device Seismic Detector Processor Signal Interpreter Weapon Assault Rifle Energy Gun Medium Laser Ballistic Gun Assault Rifle Launcher Grenade Launcher Special Weapon Mining Laser Build | -11 -10 -10 -10 ------- Run | Yrd Mat Min Sub Slots Evolved . | . . . . Power . | . . . . Propulsion . | . . . . Utility . | . . . . Weapon . | . . . . Parts Attached 13 | 7 1 4 1 Power 3 | 1 . 1 1 Engine 3 | 1 . 1 1 Core . | . . . . Reactor . | . . . . Propulsion 3 | 2 . 1 . Treads . | . . . . Leg . | . . . . Wheel 3 | 2 . 1 . Hover . | . . . . Flight . | . . . . Utility 3 | 2 . 1 . Device 2 | 2 . . . Storage . | . . . . Processor 1 | . . 1 . Hackware . | . . . . Protection . | . . . . Artifact . | . . . . Weapon 4 | 2 1 1 . Energy Gun 1 | 1 . . . Energy Cannon . | . . . . Ballistic Gun 1 | 1 . . . Ballistic Cannon . | . . . . Launcher 1 | . . 1 . Special Weapon 1 | . 1 . . Impact Weapon . | . . . . Slashing Weapon . | . . . . Piercing Weapon . | . . . . Special Melee Weapon . | . . . . Unidentified Prototypes . | . . . . Parts Lost 7 | . . 2 5 Power 1 | . . . 1 Propulsion 3 | . . 1 2 Utility . | . . . . Weapon 3 | . . 1 2 Highest Loss Streak 2 | . . 2 2 To Critical Strikes . | . . . . Average Backups 3 | . 3 4 3 Power . | . . . . Propulsion . | . 1 . . Utility 1 | . 1 1 2 Weapon 1 | . 1 1 . Tool/Special . | . . . . Unused Backups 2 | . . . 2 Power . | . . . . Propulsion . | . . . . Utility 2 | . . . 2 Weapon . | . . . . Tool/Special . | . . . . Average Slot Usage (%) 83 | . 100 92 65 Engine 10 | . 14 14 2 Wheel 24 | . 28 27 17 Device 16 | . 28 16 14 Processor 11 | . . 11 14 Energy Gun 5 | . 12 . 11 Ballistic Gun 9 | . 14 14 1 Launcher 4 | . . 6 3 Peak Build Rating 9 | 9 9 9 8 Average Rating 6 | 4 9 7 5 On Entrance 6 | . 9 9 8 Avg Prop Armor Cover (%) . | . . . . Naked Turns . | . . . . Heaviest Build 9 | 9 9 9 9 Greatest Support 20 | 20 20 20 20 Greatest Overweight (x) 1 | 1 . . . Average Overweight (x) . | . . . . Largest Inventory Capacity 5 | 5 5 5 5 Average Capacity 5 | 5 5 5 5 Most Carried 5 | 3 4 5 4 Average Carried 3 | . 3 4 3 Final Capacity 5 | 5 5 5 5 Final Carried 4 | 3 4 4 2 Class Distribution -------------------- 72% | Scavenger-Mutant 27% | Mutant Dominant Class ---------------- Scavenger-Mutant | -10/Materials Scavenger-Mutant | -10/Mines Mutant | -10/Subcaves Resources | -11 -10 -10 -10 ----------- Run | Yrd Mat Min Sub Matter Collected 452 | 303 . 129 20 Remotely . | . . . . Salvage Created 358 | 234 . 124 . Parts 31 | 19 . 12 . Haulers Intercepted . | . . . . Recyclers Shooed . | . . . . Parts Field Recycled . | . . . . Retrieved Matter . | . . . . Parts Self-Destructed 1 | . . . 1 Prevented . | . . . . Parts Restored . | . . . . Kills | -11 -10 -10 -10 ------- Run | Yrd Mat Min Sub Combat Hostiles Destroyed 8 | . . 8 . Guns 6 | . . 6 . AOE 2 | . . 2 . Classes Destroyed 5 | 3 . 2 . Worker 2 | 2 . . . Tunneler 5 | 5 . . . Recycler 1 | 1 . . . Swarmer 6 | . . 6 . Grunt 2 | . . 2 . Best Kill Streak 6 | 6 . 3 . Combat Bots Only 3 | . . 3 . Max Kills in Single Turn 2 | 2 . 1 . Gunslinging . | . . . . Exploded 1 | . . 1 . Melee . | . . . . Uniques/NPCs Destroyed . | . . . . Combat | -11 -10 -10 -10 -------- Run | Yrd Mat Min Sub Hostile Shots Fired 63 | . 8 46 9 Missed 11 | . 3 7 1 Hits 52 | . 5 39 8 Projectile 52 | . 5 39 8 AOE 4 | . . . 4 Critical Strikes 1 | . . . 1 Damage Taken 669 | . 43 329 297 Core 250 | . . 88 162 Absorbed by Shields . | . . . . Core Remaining (%) 100 | 100 . . . Volleys Fired 42 | 11 1 25 5 Largest 2 | 2 1 2 2 Hottest 120 | 70 100 120 80 Shots Fired 59 | 22 1 29 7 Gun 50 | 22 . 23 5 Cannon . | . . . . Launcher 5 | . . 3 2 Special 4 | . 1 3 . Kinetic 34 | 11 . 23 . Thermal 20 | 11 1 3 5 Explosive 5 | . . 3 2 Electromagnetic . | . . . . Robot Hit Streak 4 | 4 . 4 4 Robot Miss Streak 5 | 1 . 5 . Penetration Max . | . . . . Secondary Targets . | . . . . Shots Hit Robots 30 | 13 . 14 3 Core Hits 19 | 9 . 10 . Critical Kills . | . . . . Critical Parts Destroyed . | . . . . Critical Strikes 1 | 1 . . . Burn 1 | 1 . . . Melee Attacks . | . . . . Impact . | . . . . Slashing . | . . . . Piercing . | . . . . Sneak Attacks . | . . . . Combat Hostiles . | . . . . Follow-up Attacks . | . . . . Damage Inflicted 538 | 174 . 319 45 Guns 369 | 174 . 157 38 Cannons . | . . . . Explosions 145 | . . 138 7 Melee . | . . . . Ramming . | . . . . Kinetic 228 | 71 . 157 . Thermal 165 | 103 . 24 38 Explosive 145 | . . 138 7 Electromagnetic . | . . . . Impact . | . . . . Slashing . | . . . . Piercing . | . . . . Highest Corruption . | . . . . Average Corruption . | . . . . Corruption Purged . | . . . . Corruption Blocked . | . . . . Overload Shots . | . . . . Overflow Damage 15 | . . 15 . Projectiles . | . . . . Explosions 15 | . . 15 . Melee . | . . . . Knockbacks . | . . . . Impact . | . . . . Kinetic . | . . . . Secondary . | . . . . Self-Inflicted Damage . | . . . . Shots . | . . . . Rammed . | . . . . Targets Rammed . | . . . . Kicked . | . . . . Crushed . | . . . . Highest Temperature 60 | 27 20 60 12 Average Temperature 19 | 14 12 23 12 Received Heat Transfer 63 | . . 18 45 Siege Activations . | . . . . Martial Activations . | . . . . Shielding Activations . | . . . . Robots Disrupted . | . . . . Combat Hostiles . | . . . . Robots Corrupted . | . . . . Combat Hostiles . | . . . . Parts Fried . | . . . . Impact Corruptions . | . . . . Robots Melted . | . . . . Combat Hostiles . | . . . . Parts Melted 1 | 1 . . . Heat Transferred 531 | 370 . 50 111 Parts Sabotaged . | . . . . Parts Stolen . | . . . . Parts Stripped . | . . . . Power Chain Reactions . | . . . . Alert | -11 -10 -10 -10 ------- Run | Yrd Mat Min Sub Maximum Alert Level . | . . . . Low Security (%) 100 | 100 100 100 . Level 1 . | . . . . Level 2 . | . . . . Level 3 . | . . . . Level 4 . | . . . . Level 5 . | . . . . High Security . | . . . . Max Security . | . . . . Peak Influence 77 | 20 1 77 . Initial . | . . . . Average 21 | 3 . 28 . Influence Increases 297 | 40 1 256 . Destroy 0b10 Robot/C 160 | . . 160 . Destroy 0b10 Robot/NC 40 | 40 . . . Destroy Leader 30 | . . 30 . Destroy Structure 22 | . 1 21 . Lose Combat Pursuer 45 | . . 45 . Influence Decreases 297 | 40 1 207 49 Entered New Map 26 | . . . 26 Time Decay 238 | 40 1 187 10 Lost Part 33 | . . 20 13 Squads Dispatched . | . . . . Investigation . | . . . . Extermination . | . . . . Reinforcement . | . . . . Assault . | . . . . Garrison . | . . . . Intercept . | . . . . Searches Triggered . | . . . . Construction Impeded . | . . . . Haulers Reinforced . | . . . . Active Scanning Responses . | . . . . Cargo Convoy Interrupts . | . . . . Stealth | -11 -10 -10 -10 --------- Run | Yrd Mat Min Sub Distress Signals 1 | . 1 . . Communications Jammed . | . . . . Distress Signals . | . . . . Times Spotted 17 | . 4 10 3 Peak Tracking Total 4 | . 4 3 1 Tactical Retreats 2 | . . 2 . Traps | -11 -10 -10 -10 ------- Run | Yrd Mat Min Sub Traps Triggered . | . . . . Indirectly . | . . . . Trap Hack Attempts . | . . . . Triggered . | . . . . Disarmed . | . . . . Reprogrammed . | . . . . Reused . | . . . . Traps Extracted . | . . . . Installed . | . . . . Triggered . | . . . . Machines | -11 -10 -10 -10 ---------- Run | Yrd Mat Min Sub Machines Disabled . | . . . . Max in Single Turn . | . . . . Machines Repaired . | . . . . Machines Dismantled . | . . . . Machines Sabotaged . | . . . . Overloaded Fab Kills . | . . . . Hacking | -11 -10 -10 -10 --------- Run | Yrd Mat Min Sub Machines Accessed . | . . . . Terminals . | . . . . Fabricators . | . . . . Repair Stations . | . . . . Recycling Units . | . . . . Scanalyzers . | . . . . Garrison Access . | . . . . Total Hacks . | . . . . Successful . | . . . . Failed . | . . . . Catastrophic . | . . . . Database Lockouts . | . . . . Manual . | . . . . Terminals . | . . . . Fabricators . | . . . . Repair Stations . | . . . . Recycling Units . | . . . . Scanalyzers . | . . . . Garrison Access . | . . . . Terminal Hacks . | . . . . Fabricator Hacks . | . . . . Repair Station Hacks . | . . . . Recycling Unit Hacks . | . . . . Scanalyzer . | . . . . Garrison Access Hacks . | . . . . Unauthorized Hacks . | . . . . Terminals . | . . . . Fabricators . | . . . . Repair Stations . | . . . . Recycling Units . | . . . . Scanalyzers . | . . . . Garrison Access . | . . . . Data Cores Recovered . | . . . . Used . | . . . . Hacking Detections . | . . . . Full Trace Events . | . . . . Feedback Events . | . . . . Feedback Blocked . | . . . . Robot Schematics Acquired . | . . . . Robots Built . | . . . . Authchips . | . . . . Time . | . . . . Total Robot Build Rating . | . . . . Part Schematics Acquired . | . . . . Parts Built . | . . . . Authchips . | . . . . Time . | . . . . Total Part Build Rating . | . . . . Part Studies Acquired . | . . . . Parts Repaired . | . . . . Time . | . . . . Parts Recycled . | . . . . Recycled Matter . | . . . . Retrieved Matter . | . . . . Retrieved Components . | . . . . Parts Scanalyzed . | . . . . Part Schematics Acquired . | . . . . Parts Damaged . | . . . . Bothacking | -11 -10 -10 -10 ------------ Run | Yrd Mat Min Sub Used RIF Installer . | . . . . Robots Hacked . | . . . . Non-combat . | . . . . Combat . | . . . . Robot Hacks Applied . | . . . . Relay Couplers Released . | . . . . Fabnet Peak Effective % . | . . . . Robots Rewired . | . . . . Allies Hacked . | . . . . Hacks Repelled . | . . . . Allies | -11 -10 -10 -10 -------- Run | Yrd Mat Min Sub Total Allies . | . . . . Largest Group . | . . . . Highest-Rated Group . | . . . . Highest-Rated Ally . | . . . . Total Orders . | . . . . Ally Attacks . | . . . . Total Damage . | . . . . Kills . | . . . . Allies Corrupted . | . . . . Allies Melted . | . . . . Intel | -11 -10 -10 -10 ------- Run | Yrd Mat Min Sub Active Infowar (turns) 993 | 55 89 523 326 Terrain 225 | 55 89 81 . Seismic 984 | 46 89 523 326 Robot Analysis Total . | . . . . Derelict Logs Recovered 4 | . . 3 1 Drone Launches . | . . . . Drone Recoveries . | . . . . Exploration | -11 -10 -10 -10 ------------- Run | Yrd Mat Min Sub Turns Passed 1067 | 129 89 523 326 Spaces Moved 1119 | 94 103 552 370 Core 53 | 53 . . . Treads . | . . . . Legs . | . . . . Wheels 1066 | 41 103 552 370 Hover . | . . . . Flight . | . . . . Fastest Speed 50 | 50 80 80 80 Average Speed 80 | 81 80 80 80 Slowest Speed 100 | 100 80 80 80 Overloaded Moves . | . . . . Propulsion Burnouts . | . . . . Robots Hopped . | . . . . Potential Cave-ins . | . . . . Cave-ins Triggered . | . . . . Exploration Rate (%) 38 | 3 35 99 15 Regions Visited 3 Branch Regions 2 Pre-discovered Areas 1 | . . 1 . Known Exits Taken 1 | . . 1 . Unknown Exits Taken 2 | 1 1 . . Scrap Searched 2 | . . 2 . Spaces Dug 8 | . 1 . 7 Terrain Destroyed 40 | . 1 28 11 Melee . | . . . . Projectile 2 | . 1 1 . AOE 38 | . . 27 11 Terrain Rammed . | . . . . Walls Destroyed . | . . . . Machines Disabled . | . . . . Actions | -11 -10 -10 -10 --------- Run | Yrd Mat Min Sub Total 1219 | 121 105 599 394 Wait 35 | 7 . 13 15 Move 1116 | 93 102 551 370 Hop . | . . . . Pick Up 6 | 3 1 2 . Fast Attach 9 | 7 . 2 . Attach 5 | . . 2 3 Detach 3 | . . 2 1 Swap 1 | . 1 . . Drop 2 | . . 2 . Fire 42 | 11 1 25 5 Melee . | . . . . Ram . | . . . . Kick . | . . . . Crush . | . . . . Escape Stasis . | . . . . Rewire . | . . . . Trap . | . . . . Miscellaneous . | . . . . Route ------- -11/Scrapyard -10/Materials -10/Mines (discovered 3 exits: *Mat x2 / *Sub) -10/Subcaves (discovered 1 exit: Rec) History --------- Turn | Location | Event 12 | -11/Scrapyard | Discovered new exit (range 15) 130 | -11/Scrapyard | Entered Materials 208 | -10/Materials | Discovered new exit (range 14) 219 | -10/Materials | Entered Mines 293 | -10/Mines | Learned Materials non-interactive machine intel 321 | -10/Mines | Build established: Scavenger-Mutant 339 | -10/Mines | Found a hidden stash of uninstalled traps 368 | -10/Mines | Learned location of Storage (-9) 417 | -10/Mines | Found a damaged Exp. Sensor Array with a note attached 419 | -10/Mines | Found Prototype Device 445 | -10/Mines | Discovered new exit (range 4) 448 | -10/Mines | Identified exit to Materials 471 | -10/Mines | Learned Materials non-interactive machine intel 544 | -10/Mines | Discovered exit to Materials (range 15) 738 | -10/Mines | Discovered new exit (range 6) 742 | -10/Mines | Identified exit to Subcaves 742 | -10/Mines | Entered Subcaves 742 | -10/Subcaves | Identified exit to Recycling 743 | -10/Subcaves | Approached by a straggling Scientist 771 | -10/Subcaves | Ambushed by Subdwellers from Twisted Machinery 775 | -10/Subcaves | A swath of the cavern ceiling suddenly collapsed 775 | -10/Subcaves | Core integrity fell below 50% 820 | -10/Subcaves | Core integrity fell below 20% 1068 | -10/Subcaves | Destroyed by Y-45 Defender with Beam Rifle Last Messages --------------- 00772_ 8Y-0O4(u) builds Twisted Machinery. 00772_ Assault Rifle destroyed. 00774_ 8Y-0O4(u) builds Twisted Machinery. 00774_ Lgt. Ion Engine destroyed. 00775_ 22 Matter crushed. 00775_ 8 Matter crushed. 00775_ X7-A9I(R) crushed by falling debris. 00775_ Sub. Monowheel crushed. 00775_ Scrap Shield Fragment crushed. A swath of the cavern ceiling suddenly collapses. 00776_ 8Y-0O4(u) builds Twisted Machinery. 00819_ Grenade Launcher destroyed. 00819_ Wheel destroyed. 00819_ X7-A9I(R) destroyed. 00820_ 8Y-0O4(u) builds Twisted Machinery. 00889_ Acquired 10 matter. UB-ZW0(c): "I think it's somewhere east of here" 01065_ Wheel destroyed. 01065_ Critical hit (Burn: +37). Map ----- +----------------------------------------------------+ | ?????########?????????????????????????????????? | | ????## ######?####???????????????????????? | | ???## ## ### #???????????????????????? | | ??## #??###??????????????????? | | ?## ### #??# #??????????????????? | | ## ##?# # # # ##?## ##?????????????????? | | ## #??######### ### ####??????????????? | | ### #?###????# ##?????????????? | | #### ## #????### #?????????????? | | ### #??????## #### ##?????????????? | | #???????####??# #??????????????? | | # ####???????????# ##??????????????? | | # ##?# ####????##?## ###???????????????? | | ## ##??# ##??? #??###?????????????????? | | # ### ##???# #### #??????????????????????? | | ####?###????? #??????????????????????? | | #????????????# ########????????????????? | | #??#####?????# ### ##???????????????? | | #### ####### ## #???????????????? | | ## ## ## #???????????????? | | ## #???????????????? | | ## ## #????????????????? | | ## ##### ### ## ##???????????????? | | # #####???# #?## ### #???????????????? | | ###???????# ##??# #### ##???????????????? | | ??????????# ##???# ###@ #????????????????? | | ?????????? #????# Y ##????????????????? | | ????????? #????# ##?????????????????? | | ???????? ###???# #### #??????????????????? | | ??????? ??????####??## ##??????????????????? | | ?????? ?????????????# #???????????????????? | | ????? ??????????????# ##???????????????????? | | ???? ??????????????###????????????????????? | | ????? ?????????????????????????????????????? | | ?????? ??????????????????????????????????????? | | ??????????????????????????????????????????????? | | ??????????????????????????????????????????????? | | ??????????????????????????????????????????????? | | ??????????????????????????????????????????????? | | ??????????????????????????????????????????????? | | ??????????????????????????????????????????????? | | ??????????????????????????????????????????????? | | ??????????????????????????????????????????????? | | ??????????????????????????????????????????????? | | ??????????????????????????????????????????????? | | ??????????????????????????????????????????????? | | ??????????????????????????????????????????????? | | ??????????????????????????????????????????????? | | ??????????????????????????????????????????????? | | ??????????????????????????????????????????????? | +----------------------------------------------------+ Best States ------------- Heat Dissipation 25 Energy Generation 10 Energy Capacity 125 Matter Stores 300 Matter Capacity 300 Sight Range 16 Terrain Scan Range 16 Terrain Scan Density 10 Evasion (%) 50 Item Schematics ----------------- None Robot Schematics ------------------ None Fabricated ------------ Nothing Repaired ---------- Nothing Studied --------- None Alien Tech Used ----------------- None Achievements -------------- None Challenges ------------ None Game ------ Seed ScrapoidPlexusClaws Manual? 0 Play Time 00:17:36 Cumulative 30.3 hours Start 2026.01.02 @ 14:42:09 End 2026.01.02 @ 23:10:03 Sessions 2 Manual Loads 0 Difficulty Rogue Special Mode None Game No. 39 Rogue 20 Adventurer 0 Explorer 19 Win Type - Total 0 Types 0/0/0/0/0/0/0/0/0/0 Lore% 22 Gallery% 24 Achievement% 20 Wizard Run 0 Options --------- Layout 1 ASCII 0 Keyboard 1 Movement Arrows Keybinds 0 Fullscreen 1 Font 24/Smallcaps Map View 50x35 Zoom Use 0% Tactical HUD 1 Map Filters NONE Filters NONE Steam 1 RUN: 297c466a-6312-4d70-a8c9-b8001ecc0491